bitfinex/quotes_ETHUSD_20220113
["timestamp","ask_amount","ask_price","bid_price","bid_amount"]
[1642082298993,2.41733137,3369.9,3369.1,0.00625266]
[1642082299195,1.38337211,3369.2,3369.1,0.00625266]
[1642082299994,1.38337211,3369.2,3369.0,0.00682108]
[1642082302022,2.12556211,3369.2,3369.0,0.00682108]
[1642082302227,1.9589041,3369.1,3369.0,0.00682108]
[1642082302423,2.81056211,3369.2,3368.8,0.00795793]
[1642082302825,2.06837211,3369.2,3368.7,0.3]
[1642082303023,2.43377202,3369.1,3368.8,0.00795793]
[1642082303224,0.74226,3369.0,3368.8,0.00795793]
[1642082303425,6.53457998,3368.9,3368.6,0.00909478]
[1642082303624,0.726,3368.8,3368.6,0.00909478]
[1642082303825,2.09187101,3368.7,3368.6,0.00909478]
[1642082304070,0.426,3368.7,3368.6,0.00909478]
[1642082304272,2.37100156,3368.7,3368.6,0.00909478]
[1642082304977,0.426,3368.7,3368.6,0.00909478]
[1642082305781,2.39411224,3368.7,3368.6,0.00909478]
[1642082306183,2.39411224,3368.7,3368.3,0.01080005]
[1642082306380,2.39411224,3368.7,3368.0,0.01250532]
[1642082306381,0.74238,3368.6,3368.0,0.01250532]
[1642082306582,1.16838,3368.6,3368.0,0.01250532]
[1642082306986,0.74238,3368.5,3368.0,0.01250532]
[1642082307182,2.72286624,3368.5,3368.0,0.01250532]
[1642082307480,0.74243,3368.4,3368.0,0.01250532]
[1642082307681,0.74243,3368.4,3368.0,3.01250532]
[1642082307925,0.74243,3368.4,3368.1,2.55307591]
[1642082308126,0.74243,3368.4,3368.1,2.5650128]
[1642082308324,2.52732,3368.4,3368.2,0.01136847]
[1642082308526,2.37266875,3368.3,3368.2,0.01136847]
[1642082309326,0.426,3368.3,3368.2,0.01136847]
[1642082309833,1.91099,3368.3,3368.2,0.01136847]
[1642082310032,1.91099,3368.3,3368.1,0.01193689]
[1642082310431,1.91099,3368.3,3368.0,3.20311779]
[1642082310731,1.33817861,3368.1,3368.0,3.20311779]
[1642082310933,1.76417861,3368.1,3368.0,3.20311779]
[1642082313077,2.66567972,3369.0,3368.0,3.20311779]
[1642082313275,0.74234,3368.5,3368.0,3.20311779]
[1642082313675,0.00170527,3368.4,3368.0,3.20311779]
[1642082314076,0.00113684,3368.3,3368.0,3.20311779]
[1642082314476,1.42809101,3368.3,3368.0,3.20311779]
[1642082314676,1.72809101,3368.3,3368.0,3.20311779]
[1642082315080,2.47052101,3368.3,3368.0,3.20311779]
[1642082315928,2.17052101,3368.3,3368.0,3.20311779]
[1642082316934,0.74243,3368.3,3368.0,3.20311779]
[1642082317136,1.16834,3368.5,3368.0,3.20311779]
[1642082317442,0.00170527,3368.4,3368.0,3.20311779]
[1642082317637,0.00170527,3368.4,3368.0,3.79697689]
[1642082317840,0.00113684,3368.3,3368.0,3.79697689]
[1642082318037,0.00113684,3368.3,3368.0,3.20311779]
[1642082318238,0.74407527,3368.4,3368.0,3.20311779]
[1642082318640,0.00113684,3368.3,3368.0,3.20311779]
[1642082320077,0.00012677,3368.3,3368.0,3.20311779]
[1642082320277,0.00012677,3368.3,3368.1,0.00101007]
[1642082320975,0.74251677,3368.3,3368.1,0.00101007]
[1642082321780,1.04251677,3368.3,3368.1,0.00101007]
[1642082322828,0.74251677,3368.3,3368.1,0.00101007]
[1642082329883,0.00012677,3368.3,3368.1,0.00101007]
[1642082330082,0.00012677,3368.3,3368.1,0.59487337]
[1642082332929,0.00012677,3368.3,3368.2,2.55291308]
[1642082333326,0.00012677,3368.3,3368.2,2.85291308]
[1642082334069,0.00012677,3368.3,3368.2,5.90291308]
[1642082334271,2.00864036,3369.7,3368.2,5.90291308]
[1642082334272,0.1136,3370.4,3368.4,23.97]
[1642082334472,2.9688765,3372.0,3370.0,0.01238407]
[1642082334473,6.07,3371.9,3370.0,0.01238407]
[1642082334675,7.63988332,3372.5,3370.1,1.75964993]
[1642082334873,7.63988332,3372.5,3370.8,0.01240422]
[1642082335076,0.01989483,3371.8,3370.8,2.70500422]
[1642082335273,0.01989483,3371.8,3371.2,1.19577966]
[1642082335477,0.0193264,3371.7,3371.2,1.19577966]
[1642082335873,0.01875798,3371.6,3371.4,1.1863862]
[1642082336075,0.01875798,3371.6,3371.5,0.3]
[1642082336274,1.20191723,3372.0,3371.5,0.3]
[1642082336675,0.02046325,3371.9,3371.5,0.3]
[1642082337076,0.01989483,3371.8,3371.5,0.3]
[1642082337475,0.0193264,3371.7,3371.5,0.3]
[1642082337923,0.01875798,3371.6,3371.5,0.3]
[1642082339722,0.01875798,3371.6,3371.2,0.5933091]
[1642082339924,0.01875798,3371.6,3371.2,0.8933091]
[1642082340121,0.01818956,3371.5,3371.2,0.8933091]
[1642082340524,0.01762113,3371.4,3371.3,6.5914843]
[1642082341122,0.01762113,3371.4,3371.3,6.17963107]
[1642082341322,0.01762113,3371.4,3371.2,0.3]
[1642082341571,0.01762113,3371.4,3370.9,6.744]
[1642082341776,1.10788922,3372.0,3370.9,4.744]
[1642082341777,0.01705271,3371.3,3370.9,4.744]
[1642082342177,1.10788922,3372.0,3370.9,4.744]
[1642082342178,0.01648428,3371.2,3370.9,4.744]
[1642082342377,0.49980224,3371.1,3370.9,4.744]
[1642082342579,0.5157181,3371.1,3370.9,4.744]
[1642082342779,0.01534744,3371.0,3370.9,4.744]
[1642082344383,0.01534744,3371.0,3370.9,6.6920942]
[1642082345181,0.01534744,3371.0,3370.9,4.744]
[1642082348425,5.94834744,3371.0,3370.9,4.744]
[1642082348627,5.94834744,3371.0,3370.7,2.34083253]
[1642082348925,0.01477901,3370.9,3370.7,2.34083253]
[1642082349194,0.49980224,3371.7,3370.8,1.83303437]
[1642082349394,5.9325,3371.6,3370.8,1.83303437]
[1642082349693,0.01477901,3370.9,3370.8,0.3]
[1642082349894,5.94727901,3370.9,3370.4,4.4171]
[1642082350095,5.94727901,3370.9,3370.4,4.7171]
[1642082350294,0.51401283,3370.8,3370.4,4.7171]
[1642082350499,5.9325,3370.7,3370.4,4.7171]
[1642082350694,5.94614217,3370.7,3370.4,4.7171]
[1642082350896,0.01307374,3370.6,3370.4,4.7171]
[1642082351096,5.9325,3370.5,3370.4,4.7171]
[1642082351297,5.94500532,3370.5,3370.4,4.7171]
[1642082351497,5.94500532,3370.5,3370.4,0.3]
[1642082351897,5.94500532,3370.5,3370.1,0.57639993]
[1642082352099,5.94500532,3370.5,3370.4,3.0]
[1642082352300,5.9325,3370.5,3370.4,3.0]
[1642082352601,5.9325,3370.5,3370.4,3.3]
[1642082353432,5.9325,3370.5,3370.4,5.34123036]
[1642082353840,5.9325,3370.5,3370.4,3.3]
[1642082354837,5.9325,3370.5,3370.4,5.22744727]
[1642082355841,5.9325,3370.5,3370.4,3.3]
[1642082356239,5.9325,3370.5,3370.4,5.25688832]
[1642082356442,5.9325,3370.5,3370.4,3.3]
[1642082356684,1.85062011,3370.5,3370.4,3.3]
[1642082357481,1.84062011,3370.5,3370.4,3.3]
[1642082358082,1.84062011,3370.5,3370.4,5.24587549]
[1642082358883,1.84062011,3370.5,3370.4,8.69587549]
[1642082359883,1.84062011,3370.5,3370.4,7.79703595]
[1642082360726,1.84062011,3370.5,3370.4,25.16703595]
[1642082361526,1.84062011,3370.5,3370.4,7.79703595]
[1642082361734,0.49980224,3371.7,3370.5,6.1]
[1642082362030,0.01591586,3371.1,3370.6,2.22795566]
[1642082362431,0.01534744,3371.0,3370.6,2.22795566]
[1642082362831,0.01477901,3370.9,3370.6,2.22795566]
[1642082363034,5.9334,3370.8,3370.6,2.22795566]
[1642082363232,5.9334,3370.8,3370.6,0.3]
[1642082363233,5.94761059,3370.8,3370.6,0.3]
[1642082363432,5.9334,3370.8,3370.5,2.2639339]
[1642082364279,5.9334,3370.8,3370.5,0.3]
[1642082364477,5.9334,3370.8,3370.5,2.3]
[1642082364779,5.9334,3370.8,3370.5,2.0]
[1642082365077,5.9334,3370.8,3370.4,3.3]
[1642082365681,5.9334,3370.8,3370.7,17.37]
[1642082365881,5.9334,3370.8,3370.7,17.96769659]
[1642082366081,5.94761059,3370.8,3370.7,18.26769659]
[1642082366884,5.94761059,3370.8,3370.7,3.44853987]
[1642082367082,5.94761059,3370.8,3370.7,5.49710392]
[1642082367683,5.94761059,3370.8,3370.7,8.44710392]
[1642082368135,5.94761059,3370.8,3370.7,25.81710392]
[1642082368533,11.88101059,3370.8,3370.7,27.10419996]
[1642082369038,11.88101059,3370.8,3370.7,25.81710392]
[1642082371877,7.79955305,3370.8,3370.7,25.81710392]
[1642082372578,7.79955305,3370.8,3370.7,5.49710392]
[1642082373379,7.79955305,3370.8,3370.7,3.44853987]
[1642082374584,7.79955305,3370.8,3370.7,10.27350911]
[1642082374782,7.79955305,3370.8,3370.7,27.64350911]
[1642082375183,7.79955305,3370.8,3370.7,20.81853987]
[1642082375434,5.0949,3372.7,3370.7,20.81853987]
[1642082375435,2.94368,3374.2,3371.4,17.37]
[1642082375734,6.07,3374.8,3371.4,17.37]
[1642082375735,11.9491,3374.8,3373.0,0.01215785]
[1642082375934,11.9491,3374.8,3373.1,0.59769659]
[1642082376132,0.02103167,3374.5,3373.2,0.17169659]
[1642082376334,0.02103167,3374.5,3373.4,0.17169659]
[1642082376533,1.46764273,3374.2,3373.7,0.17169659]
[1642082376737,5.9278,3374.1,3373.9,0.17169659]
[1642082376938,5.94655798,3374.1,3373.9,0.17169659]
[1642082377142,0.01818955,3374.0,3373.9,0.17169659]
[1642082378140,0.01818955,3374.0,3373.9,2.08130545]
[1642082378638,0.01818955,3374.0,3373.9,7.03130545]
[1642082379080,0.01818955,3374.0,3373.9,7.45730545]
[1642082379280,0.01307374,3374.0,3373.9,26.52730545]
[1642082379481,0.01307374,3374.0,3373.9,29.07637483]
[1642082380682,0.01307374,3374.0,3373.9,27.37637483]
[1642082381684,0.01307374,3374.0,3373.9,27.41189802]
[1642082381885,5.45546552,3374.1,3374.0,6.82169659]
[1642082382084,0.49997777,3375.4,3374.1,6.82169659]
[1642082382289,4.707,3376.3,3374.3,0.17169659]
[1642082382485,0.00625266,3375.1,3374.3,4.60449659]
[1642082382684,0.00625266,3375.1,3374.5,0.17169659]
[1642082382929,0.00568424,3375.0,3374.7,0.17169659]
[1642082383129,1.19745429,3374.9,3374.8,0.59769659]
[1642082383333,1.2025701,3374.9,3374.8,0.17169659]
[1642082383528,1.2025701,3374.9,3374.8,0.37169659]
[1642082383729,1.2025701,3374.9,3374.8,0.17169659]
[1642082384230,1.2025701,3374.9,3374.8,3.17169659]
[1642082385229,1.2025701,3374.9,3374.8,3.47169659]
[1642082386031,0.00511581,3374.9,3374.8,3.47169659]
[1642082388681,0.89721581,3374.9,3374.8,3.47169659]
[1642082389582,0.00511581,3374.9,3374.8,5.59856226]
[1642082389782,0.00511581,3374.9,3374.8,3.47169659]
[1642082390338,6.82341581,3374.9,3374.8,3.47169659]
[1642082397497,6.82341581,3374.9,3374.8,3.42169659]
[1642082397927,8.07967166,3374.9,3374.8,3.42169659]
[1642082398131,6.82341581,3374.9,3374.8,3.42169659]
[1642082399128,8.19211161,3374.9,3374.8,3.42169659]
[1642082400639,8.19211161,3374.9,3374.8,3.17169659]
[1642082400844,8.49211161,3374.9,3374.8,3.17169659]
[1642082401038,14.41831161,3374.9,3374.8,3.17169659]
[1642082401684,14.41831161,3374.9,3374.8,2.67171882]
[1642082401685,14.11831161,3374.9,3374.8,2.67171882]
[1642082401885,12.74961581,3374.9,3374.8,2.67171882]
[1642082402887,13.94334289,3374.9,3374.8,2.67171882]
[1642082403790,12.74961581,3374.9,3374.8,2.67171882]
[1642082404191,13.04961581,3374.9,3374.8,2.67171882]
[1642082404388,12.74961581,3374.9,3374.8,2.67171882]
[1642082404788,12.74961581,3374.9,3374.8,2.97171882]
[1642082406537,12.7445,3374.9,3374.8,2.97171882]
[1642082406937,12.74961581,3374.9,3374.8,2.97171882]
[1642082407535,8.67227124,3374.9,3374.8,2.97171882]
[1642082408341,8.67227124,3374.9,3374.8,4.95883384]
[1642082408536,8.67227124,3374.9,3374.8,2.97171882]
[1642082409584,8.67227124,3374.9,3374.8,3.0606802]
[1642082410584,8.67227124,3374.9,3374.8,4.9786266]
[1642082411789,18.67227124,3374.9,3374.8,4.9786266]
[1642082412185,18.67227124,3374.9,3374.8,3.0606802]
[1642082413631,18.67227124,3374.9,3374.8,5.30889567]
[1642082413831,18.97227124,3374.9,3374.8,5.30889567]
[1642082414230,18.67227124,3374.9,3374.8,2.7606802]
[1642082415032,18.65803292,3374.9,3374.8,2.7606802]
[1642082415634,18.65803292,3374.9,3374.8,3.0606802]
[1642082416134,18.65803292,3374.9,3374.8,2.7606802]
[1642082416331,18.65803292,3374.9,3374.8,3.0606802]
[1642082417788,18.65803292,3374.9,3374.8,5.60941436]
[1642082419289,18.65803292,3374.9,3374.8,5.30941436]
[1642082419290,18.95803292,3374.9,3374.8,5.30941436]
[1642082420627,18.95803292,3374.9,3374.8,5.25941436]
[1642082421432,18.65803292,3374.9,3374.8,5.25941436]
[1642082422235,18.65803292,3374.9,3374.8,5.24339236]
[1642082423435,18.65803292,3374.9,3374.8,5.54339236]
[1642082431042,18.60803292,3374.9,3374.8,5.54339236]
[1642082433987,18.60803292,3374.9,3374.8,5.24339236]
[1642082434187,18.60803292,3374.9,3374.8,3.46859236]
[1642082434188,18.90803292,3374.9,3374.8,3.46859236]
[1642082434389,18.90803292,3374.9,3374.1,1.45894452]
[1642082434390,7.5421,3374.7,3374.1,1.45894452]
[1642082434587,8.66390966,3374.6,3374.1,1.45894452]
[1642082434886,0.00284212,3374.5,3374.0,5.28126773]
[1642082435087,0.8921,3374.2,3374.0,5.28126773]
[1642082435339,2.67671711,3374.1,3374.0,5.28126773]
[1642082435934,2.67671711,3374.1,3373.4,1.45894452]
[1642082436134,0.8921,3373.7,3373.4,1.45894452]
[1642082436334,1.5022664,3373.8,3373.4,1.45894452]
[1642082436335,2.67671711,3373.6,3373.5,0.00284212]
[1642082437739,2.67671711,3373.6,3373.3,0.00397896]
[1642082438141,0.8921,3373.4,3373.3,0.00397896]
[1642082438341,2.67671711,3373.4,3373.3,0.00397896]
[1642082440082,5.60478111,3373.4,3373.3,0.00397896]
[1642082443938,5.60478111,3373.4,3373.3,3.00397896]
[1642082446987,11.53098111,3373.4,3373.3,3.00397896]
[1642082447790,11.83098111,3373.4,3373.3,3.00397896]
[1642082450833,11.53098111,3373.4,3373.3,3.00397896]
[1642082451742,11.83098111,3373.4,3373.3,3.00397896]
[1642082454989,11.53098111,3373.4,3373.3,3.00397896]
[1642082455386,11.53098111,3373.4,3373.3,4.24193225]
[1642082455587,11.53098111,3373.4,3373.3,6.16993101]
[1642082455790,11.53098111,3373.4,3373.3,3.00397896]
[1642082455989,11.53098111,3373.4,3373.3,4.95341025]
[1642082456387,11.53098111,3373.4,3373.3,3.00397896]
[1642082456787,11.53098111,3373.4,3373.3,5.55340943]
[1642082458144,11.53098111,3373.4,3373.3,7.50496336]
[1642082458343,11.53098111,3373.4,3373.3,5.55340943]
[1642082460351,6.48701396,3373.4,3373.3,11.30340943]
[1642082460548,6.48701396,3373.4,3373.3,5.85340943]
[1642082460751,6.48701396,3373.4,3373.3,9.10340943]
[1642082460951,9.45391396,3373.4,3373.3,5.85340943]
[1642082461682,9.45391396,3373.4,3373.3,8.50340943]
[1642082462084,9.45391396,3373.4,3373.3,5.85340943]
[1642082462584,9.45391396,3373.4,3373.3,7.79148065]
[1642082462992,0.00113685,3374.2,3373.3,14.42992889]
[1642082463186,0.00113685,3374.2,3374.0,0.01297941]
[1642082463787,0.00113685,3374.2,3374.1,8.17687861]
[1642082464190,0.00113685,3374.2,3374.1,8.47687861]
[1642082464988,0.00113685,3374.2,3374.1,11.02630908]
[1642082465439,0.00113685,3374.2,3374.1,28.39630908]
[1642082465642,10.0,3374.9,3374.1,28.39630908]
[1642082465939,0.00170527,3374.3,3374.2,2.07058823]
[1642082466139,0.00170527,3374.3,3374.2,19.86658823]
[1642082466740,0.00170527,3374.3,3374.2,17.796]
[1642082467740,0.00170527,3374.3,3374.2,20.34543047]
[1642082468341,5.27e-06,3374.3,3374.2,21.379765]
[1642082468739,5.27e-06,3374.3,3374.2,21.34543047]
[1642082469786,5.27e-06,3374.3,3374.2,25.16852155]
[1642082470287,10.0,3374.9,3374.2,25.16852155]
[1642082470288,2.18736927,3374.4,3374.2,25.16852155]
[1642082470490,0.84666927,3374.4,3374.3,7.08685365]
[1642082470692,0.84666927,3374.4,3374.3,7.51285365]
[1642082470890,0.84666927,3374.4,3374.3,2.66285365]
[1642082471090,0.84666927,3374.4,3374.3,21.3478697]
[1642082471590,0.84666927,3374.4,3374.3,2.04101605]
[1642082471793,0.84666927,3374.4,3374.3,21.96044652]
[1642082472393,0.84666927,3374.4,3374.3,4.59044652]
[1642082473137,0.84666927,3374.4,3374.3,6.27543047]
[1642082473942,0.84666927,3374.4,3374.3,23.64543047]
[1642082474742,0.84666927,3374.4,3374.3,25.07584848]
[1642082474941,0.84666927,3374.4,3374.3,26.07584848]
[1642082475543,0.84666927,3374.4,3374.3,29.89884201]
[1642082477381,0.82840747,3374.4,3374.3,29.89884201]
[1642082477788,10.0,3374.9,3374.4,6.65]
[1642082477989,10.0,3374.9,3374.7,0.74065]
[1642082478286,0.00284212,3374.8,3374.7,1.04065]
[1642082478488,0.00284212,3374.8,3374.7,5.89065]
[1642082478885,0.00284212,3374.8,3374.7,23.26065]
[1642082479088,0.00284212,3374.8,3374.7,0.3]
[1642082479286,0.00284212,3374.8,3374.6,0.3]
[1642082479487,0.00284212,3374.8,3374.3,9.372424]
[1642082479688,0.0022737,3374.7,3374.3,3.0]
[1642082480086,10.0,3374.9,3374.3,3.0]
[1642082480087,0.00170527,3374.6,3374.3,3.0]
[1642082480535,0.00113685,3374.5,3374.3,3.0]
[1642082480938,0.5010924,3374.5,3374.3,3.0]
[1642082482242,0.55466265,3374.5,3374.3,3.0]
[1642082482640,0.5010924,3374.5,3374.3,3.0]
[1642082486089,11.48196,3374.9,3374.3,3.0]
[1642082486294,5.9266,3374.8,3374.4,2.726]
[1642082486488,0.00113685,3374.7,3374.6,7.39073]
[1642082486693,0.00113685,3374.7,3374.6,7.81673]
[1642082486890,0.00113685,3374.7,3374.6,8.11673]
[1642082487292,0.00113685,3374.7,3374.6,3.0026199]
[1642082487490,0.00113685,3374.7,3374.6,1.04073]
[1642082487690,0.00113685,3374.7,3374.6,2.04073]
[1642082487933,0.00113685,3374.7,3374.6,1.04073]
[1642082488732,0.00113685,3374.7,3374.5,2.56168671]
[1642082488935,0.00113685,3374.7,3374.6,0.74075]
[1642082489537,0.00113685,3374.7,3374.6,1.74075]
[1642082489736,0.00113685,3374.7,3374.6,1.0]
[1642082490141,0.00113685,3374.7,3374.5,1.04069]
[1642082490341,0.00113685,3374.7,3374.3,3.0]
[1642082490743,0.00113685,3374.7,3374.3,3.3]
[1642082490941,0.00113685,3374.7,3374.3,3.0]
[1642082492085,1.35314458,3374.6,3374.3,3.0]
[1642082492284,1.35314458,3374.6,3374.3,3.3]
[1642082492487,1.35314458,3374.6,3374.3,3.0]
[1642082492685,5.9266,3374.5,3374.3,3.0]
[1642082493487,7.74095185,3374.4,3374.3,3.0]
[1642082493688,13.66755185,3374.4,3374.3,3.0]
[1642082493887,13.66755185,3374.4,3374.3,3.00113685]
[1642082494192,13.1677,3374.4,3374.3,3.00113685]
[1642082494390,6.6677,3374.4,3374.3,2.501285]
[1642082495344,6.6677,3374.4,3374.3,2.00144065]
[1642082495938,6.6677,3374.4,3374.3,1.50164074]
[1642082496541,6.6677,3374.4,3374.3,1.00184084]
[1642082497140,6.6677,3374.4,3374.3,0.50204094]
[1642082497543,6.6677,3374.4,3374.3,0.00224104]
[1642082497947,6.6677,3374.4,3374.3,4.104e-05]
[1642082498144,7.14975887,3374.3,3373.1,1.45894452]
[1642082498343,0.74136,3373.7,3373.1,1.45894452]
[1642082498544,1.04136,3373.7,3373.2,0.00625266]
[1642082498746,5.9266,3373.6,3373.5,2.54902891]
[1642082499090,7.3758672,3373.6,3373.5,2.5535763]
[1642082499689,7.3758672,3373.6,3373.5,0.00454739]
[1642082499892,7.07732829,3373.5,3373.3,2.54902891]
[1642082500093,5.9266,3373.4,3373.3,2.54902891]
[1642082500293,6.2266,3373.4,3373.3,2.54902891]
[1642082500494,5.9266,3373.4,3373.3,2.55016575]
[1642082501697,6.49881896,3373.3,3372.5,2.54902891]
[1642082502004,6.66797,3373.2,3372.6,0.00397897]
[1642082502296,7.40934,3373.2,3372.6,0.00397897]
[1642082502498,6.66797,3373.2,3372.6,0.00397897]
[1642082502939,0.74146,3372.9,3372.5,0.00454739]
[1642082503137,5.9266,3372.8,3372.5,0.00454739]
[1642082503340,0.74149,3372.7,3372.5,0.00454739]
[1642082503536,5.9266,3372.6,3372.5,0.00454739]
[1642082504040,6.42630852,3372.6,3372.1,0.00682108]
[1642082504238,0.74153,3372.5,3372.1,0.00682108]
[1642082504441,8.22180267,3372.4,3372.1,0.00682108]
[1642082505042,8.22180267,3372.4,3371.8,0.00852635]
[1642082506243,8.22180267,3372.4,3371.8,0.30852635]
[1642082506443,8.22180267,3372.4,3371.7,0.00909478]
[1642082506686,8.22180267,3372.4,3371.9,0.00795793]
[1642082506888,8.22180267,3372.4,3371.7,0.00909478]
[1642082509090,8.22180267,3372.4,3371.7,4.00909478]
[1642082509290,8.22180267,3372.4,3371.7,4.86940653]
[1642082509490,8.22180267,3372.4,3371.8,0.00852635]
[1642082510940,7.05921968,3372.4,3371.8,0.00852635]
[1642082511141,7.05921968,3372.4,3371.8,1.00852635]
[1642082511340,7.05921968,3372.4,3371.9,1.84731246]
[1642082511543,7.05921968,3372.4,3371.9,0.00795793]
[1642082511741,7.05921968,3372.4,3372.0,0.00738951]
[1642082511940,7.05921968,3372.4,3371.9,1.86903504]
[1642082512141,8.54493565,3372.4,3372.0,0.00738951]
[1642082512547,8.54493565,3372.4,3371.8,1.3]
[1642082512548,8.54493565,3372.4,3371.9,0.00795793]
[1642082513344,8.54493565,3372.4,3371.8,0.00852635]
[1642082513345,9.58649565,3372.4,3371.8,0.00852635]
[1642082513545,8.54493565,3372.4,3371.8,0.00852635]
[1642082514389,1.24134852,3372.1,3371.8,0.00852635]
[1642082514596,5.97568292,3372.0,3371.8,0.00852635]
[1642082514892,5.9266,3372.0,3371.8,0.00852635]
[1642082521901,5.9266,3372.0,3371.9,0.00303679]
[1642082522107,8.2266,3372.0,3371.9,0.00303679]
[1642082522302,8.2266,3372.0,3371.9,0.01099472]
[1642082522303,6.6526,3372.0,3371.9,0.01099472]
[1642082522503,6.65,3371.9,3371.7,3.0]
[1642082522707,13.0526,3371.8,3371.7,3.0]
[1642082523102,6.7,3371.7,3371.0,3.82323775]
[1642082523303,6.7,3371.7,3370.7,1.45894452]
[1642082523304,6.3526,3371.6,3370.7,3.82323775]
[1642082523501,6.3526,3371.6,3371.1,0.00341054]
[1642082523502,0.74191,3371.4,3371.1,0.00341054]
[1642082523707,1.4838685,3371.2,3371.1,0.00341054]
[1642082523906,5.9266,3371.2,3371.1,0.00341054]
[1642082524106,7.44141851,3371.2,3371.1,0.00341054]
[1642082524405,7.44141851,3371.2,3370.2,1.45894452]
[1642082524406,5.7,3370.8,3370.2,1.45894452]
[1642082524610,5.9266,3370.7,3369.9,2.19536067]
[1642082524805,5.9266,3370.7,3369.8,3.82707465]
[1642082525008,5.9266,3370.7,3370.1,0.00568423]
[1642082525735,6.2266,3370.7,3370.1,0.00568423]
[1642082525938,7.91878001,3370.7,3370.1,0.00568423]
[1642082526137,5.9266,3370.7,3370.1,0.00568423]
[1642082526539,5.9266,3370.7,3370.2,2.55152009]
[1642082526943,0.74195,3370.6,3370.3,0.00454739]
[1642082527143,5.9266,3370.5,3370.3,0.00454739]
[1642082528244,5.9266,3370.5,3370.4,2.55152009]
[1642082528642,5.9266,3370.5,3370.4,2.85549905]
[1642082529489,1.84479997,3370.5,3370.4,2.85549905]
[1642082529889,1.84479997,3370.5,3370.4,2.55549905]
[1642082530896,1.84479997,3370.5,3370.4,9.20549905]
[1642082531096,1.84479997,3370.5,3370.4,3.85549905]
[1642082531694,1.84479997,3370.5,3370.4,2.55549905]
[1642082531894,1.84479997,3370.5,3370.4,6.60549905]
[1642082532098,1.84479997,3370.5,3370.4,3.85549905]
[1642082532698,1.84479997,3370.5,3370.4,2.55549905]
[1642082532968,1.16733347,3370.8,3370.4,2.55549905]
[1642082533158,1.16733347,3370.8,3370.5,0.3]
[1642082533364,1.1588314,3370.8,3370.5,0.00341054]
[1642082533558,1.1588314,3370.8,3370.6,0.00284212]
[1642082533759,1.1588314,3370.8,3370.5,0.00341054]
[1642082534160,1.1588314,3370.8,3370.5,1.88716993]
[1642082534358,1.1588314,3370.8,3370.6,2.55152009]
[1642082534559,1.1588314,3370.8,3370.7,1.88659633]
[1642082534761,1.3032456,3371.2,3370.7,1.86884886]
[1642082534962,0.7417608,3371.1,3370.7,0.00227369]
[1642082535161,0.7417608,3371.1,3370.8,0.00170527]
[1642082535360,1.3032456,3371.2,3370.7,0.00227369]
[1642082535866,1.26478759,3371.1,3370.7,0.00227369]
[1642082536060,0.7418239,3371.0,3370.7,0.00227369]
[1642082536260,1.0418239,3371.0,3370.7,0.00227369]
[1642082536889,0.7418239,3371.0,3370.7,0.00227369]
[1642082537088,5.9332,3370.9,3370.7,0.00227369]
[1642082538094,7.17491844,3370.9,3370.6,0.00284212]
[1642082538292,0.7418534,3370.8,3370.6,0.00284212]
[1642082538494,5.9332,3370.7,3370.6,0.00284212]
[1642082539595,7.1241,3370.7,3370.6,0.00284212]
[1642082539797,11.2241,3370.7,3370.6,0.00284212]
[1642082539994,8.4241,3370.7,3370.6,0.00284212]
[1642082540194,8.4241,3370.7,3370.4,3.0]
[1642082540195,6.1,3370.5,3370.4,3.0]
[1642082540438,12.77529,3370.5,3370.4,3.0]
[1642082540737,6.67529,3370.5,3370.4,3.00113684]
[1642082541743,6.97529,3370.5,3370.4,3.00113684]
[1642082541943,7.86739,3370.5,3370.4,2.50115254]
[1642082542541,7.86739,3370.5,3370.4,2.00134546]
[1642082542946,8.29339,3370.5,3370.4,2.00134546]
[1642082543145,9.21369,3370.5,3370.4,1.50153838]
[1642082543345,6.7,3370.4,3369.5,3.82616744]
[1642082543649,0.8921,3369.9,3369.6,0.00454739]
[1642082543946,3.30994332,3369.7,3369.6,0.00454739]
[1642082544191,9.24314332,3369.7,3369.6,0.00454739]
[1642082544790,7.98184006,3369.7,3369.5,0.00511581]
[1642082549050,0.49980708,3370.0,3369.7,6.4]
[1642082549248,2.2257991,3371.1,3369.7,6.4]
[1642082549249,1.4834436,3371.5,3369.9,6.71219817]
[1642082549449,5.9335,3371.4,3369.9,3.73989817]
[1642082549648,0.00170527,3370.7,3370.0,3.8442737]
[1642082550048,1.54897445,3370.3,3370.1,0.00170527]
[1642082550347,5.9335,3370.2,3370.1,0.00170527]
[1642082550948,5.9335,3370.2,3370.0,0.0022737]
[1642082552422,5.9335,3370.2,3369.8,0.00341054]
[1642082552622,5.9335,3370.2,3369.8,1.91284054]
[1642082553022,5.9335,3370.2,3369.9,0.00284212]
[1642082553424,5.9335,3370.2,3370.0,0.74176]
[1642082553623,5.9335,3370.2,3370.1,6.2599987]
[1642082553824,5.9335,3370.2,3370.1,2.99501397]
[1642082554126,5.9335,3370.2,3370.1,3.99501397]
[1642082554724,5.9335,3370.2,3370.1,6.34501397]
[1642082554924,1.85163518,3370.2,3370.1,6.34501397]
[1642082555125,1.85163518,3370.2,3370.1,6.99501397]
[1642082555577,1.85163518,3370.2,3370.1,5.99501397]
[1642082555780,1.85163518,3370.2,3370.1,4.51170397]
[1642082556582,1.85163518,3370.2,3370.1,5.51170397]
[1642082556785,1.85163518,3370.2,3370.1,6.25344397]
[1642082557582,1.85163518,3370.2,3370.1,5.51170397]
[1642082558585,1.85163518,3370.2,3370.1,6.97064849]
[1642082558784,1.85163518,3370.2,3370.1,7.71236849]
[1642082559393,1.85163518,3370.2,3370.1,6.97064849]
[1642082559592,1.85163518,3370.2,3370.1,5.97064849]
[1642082559792,1.85163518,3370.2,3370.1,4.46064979]
[1642082561609,4.71888572,3370.2,3370.1,5.55309283]
[1642082561803,5.46090572,3370.2,3370.1,5.55309283]
[1642082562004,4.3,3370.1,3369.7,1.45894452]
[1642082562202,2.59372518,3370.0,3369.7,1.45894452]
[1642082562402,2.59372518,3370.0,3369.8,0.00170527]
[1642082562403,4.07786518,3370.0,3369.8,0.00170527]
[1642082562855,4.07786518,3370.0,3369.7,1.45894452]
[1642082563062,1.26994297,3369.9,3369.5,2.19536067]
[1642082563264,1.26994297,3369.9,3369.4,5.3769]
[1642082563265,1.85163518,3369.8,3369.4,5.3769]
[1642082563462,1.85163518,3369.8,3369.6,0.00113685]
[1642082563661,3.33582108,3369.8,3369.6,0.00113685]
[1642082564862,3.33582108,3369.8,3369.6,3.00113685]
[1642082565065,0.74211,3369.7,3369.6,3.00113685]
[1642082565262,2.59374518,3369.7,3369.6,3.00113685]
[1642082566465,1.85163518,3369.7,3369.6,3.00113685]
[1642082567393,2.59373518,3369.7,3369.6,3.00113685]